bitfinex/quotes_BTCUSD_20230115
["timestamp","ask_amount","ask_price","bid_price","bid_amount"]
[1673758458771,1.32919976,20697.0,20696.0,0.60025743]
[1673758459028,1.47339009,20697.0,20696.0,0.60025743]
[1673758460344,0.77395095,20697.0,20696.0,0.60025743]
[1673758460885,0.29136033,20697.0,20696.0,0.60025743]
[1673758461125,0.29136033,20697.0,20696.0,0.2719534]
[1673758461126,0.082,20697.0,20696.0,0.2719534]
[1673758461399,0.082,20697.0,20696.0,2.13281397]
[1673758461400,0.08192925,20697.0,20696.0,2.13281397]
[1673758461658,0.08192925,20697.0,20696.0,2.61607773]
[1673758461925,0.08192925,20697.0,20696.0,1.84148671]
[1673758462204,0.44419033,20701.0,20696.0,0.729765]
[1673758462419,0.3,20701.0,20699.0,0.0794]
[1673758462661,0.3,20701.0,20699.0,0.10424485]
[1673758462904,0.3,20701.0,20699.0,0.0794]
[1673758464213,0.375,20701.0,20699.0,0.0814]
[1673758464473,0.375,20701.0,20700.0,0.60646286]
[1673758464983,0.375,20701.0,20700.0,0.6482873]
[1673758465237,0.375,20701.0,20700.0,0.1583]
[1673758465510,0.375,20701.0,20700.0,0.641391]
[1673758466266,0.3,20701.0,20700.0,1.041391]
[1673758466521,0.375,20701.0,20700.0,1.043391]
[1673758466776,0.375,20701.0,20700.0,0.943391]
[1673758467538,0.375,20701.0,20700.0,0.4603]
[1673758467792,0.3,20701.0,20700.0,1.10233778]
[1673758468047,0.306,20701.0,20700.0,0.97303778]
[1673758468294,0.306,20701.0,20700.0,0.94403778]
[1673758470110,0.368,20701.0,20700.0,1.02633778]
[1673758470372,0.43,20701.0,20700.0,1.02933778]
[1673758471133,0.43,20701.0,20700.0,1.10863778]
[1673758471668,0.43,20701.0,20700.0,0.4646]
[1673758471920,0.43,20701.0,20700.0,0.5646]
[1673758472474,0.43,20701.0,20700.0,0.942691]
[1673758474278,0.43,20701.0,20700.0,1.243991]
[1673758476061,0.43,20701.0,20700.0,1.021491]
[1673758476316,0.43,20701.0,20700.0,0.942191]
[1673758479855,0.30432975,20706.0,20701.0,0.07235781]
[1673758480108,0.30432975,20706.0,20702.0,0.02484485]
[1673758480360,0.61259169,20706.0,20702.0,0.02484485]
[1673758480872,0.30432975,20706.0,20703.0,0.02484485]
[1673758481397,0.30432975,20706.0,20703.0,0.50786585]
[1673758481659,0.30432975,20706.0,20703.0,0.483021]
[1673758481917,0.62286103,20706.0,20703.0,0.483021]
[1673758482454,0.81358698,20706.0,20704.0,0.60052665]
[1673758482681,1.45165169,20705.0,20701.0,0.08235781]
[1673758482932,0.98907164,20704.0,20701.0,0.08235781]
[1673758483179,1.295686,20703.0,20701.0,0.08235781]
[1673758483444,0.483021,20703.0,20702.0,0.54152184]
[1673758483702,0.482996,20705.0,20703.0,0.48886864]
[1673758484964,0.482996,20705.0,20703.0,0.49986864]
[1673758485229,0.482996,20705.0,20703.0,0.48886864]
[1673758485478,0.19922595,20704.0,20703.0,0.011]
[1673758485738,1.22036738,20704.0,20703.0,0.011]
[1673758486285,0.1,20703.0,20701.0,0.07235781]
[1673758486549,1.729217,20702.0,20701.0,0.07235781]
[1673758487581,2.01274754,20702.0,20701.0,0.07235781]
[1673758488093,2.01274754,20702.0,20701.0,0.08335781]
[1673758488094,2.11897954,20702.0,20701.0,0.08335781]
[1673758488345,1.79783554,20702.0,20701.0,0.08335781]
[1673758488611,1.31479054,20702.0,20701.0,0.08335781]
[1673758489372,0.491545,20702.0,20701.0,0.07235781]
[1673758489628,0.491545,20702.0,20701.0,0.08235781]
[1673758489888,0.491545,20702.0,20701.0,0.63821679]
[1673758490142,0.491545,20702.0,20701.0,0.64421679]
[1673758493968,0.0085,20702.0,20701.0,0.64421679]
[1673758495269,0.62295275,20706.0,20701.0,0.64421679]
[1673758495541,1.27162611,20706.0,20702.0,0.02484485]
[1673758496035,0.34585606,20705.0,20702.0,0.02484485]
[1673758496290,0.34585606,20705.0,20701.0,0.63821679]
[1673758496550,0.19072595,20705.0,20699.0,1.02551994]
[1673758496830,0.19072595,20704.0,20701.0,0.55199388]
[1673758497044,0.79846276,20706.0,20700.0,0.966175]
[1673758497309,0.0085,20705.0,20702.0,0.01]
[1673758497565,0.34797868,20705.0,20702.0,0.01]
[1673758497833,0.34797868,20705.0,20703.0,0.51974792]
[1673758498874,0.34797868,20705.0,20703.0,0.53074792]
[1673758500166,0.34173027,20704.0,20703.0,0.011]
[1673758500423,0.83322827,20704.0,20703.0,0.011]
[1673758501182,0.83322827,20704.0,20701.0,0.60457189]
[1673758501433,0.83322827,20704.0,20703.0,0.009416]
[1673758502216,0.83322827,20704.0,20701.0,0.60457189]
[1673758502462,0.0085,20703.0,20701.0,0.61057189]
[1673758502705,0.483045,20702.0,20701.0,0.60457189]
[1673758503980,0.483045,20702.0,20701.0,0.61057189]
[1673758504254,0.483045,20702.0,20699.0,0.22374914]
[1673758504494,0.483045,20702.0,20701.0,0.006]
[1673758505837,0.483045,20702.0,20701.0,0.001]
[1673758511327,0.483045,20702.0,20701.0,0.71730729]
[1673758515048,0.86639787,20703.0,20701.0,0.71730729]
[1673758515295,0.483011,20704.0,20701.0,0.71730729]
[1673758516016,0.483011,20704.0,20702.0,0.56434148]
[1673758516534,0.94297153,20705.0,20702.0,0.56434148]
[1673758517280,0.94297153,20705.0,20702.0,0.57334148]
[1673758517516,0.94297153,20705.0,20702.0,0.56434148]
[1673758517769,0.94297153,20705.0,20702.0,0.57434148]
[1673758518509,0.94297153,20705.0,20703.0,0.60433337]
[1673758519713,0.94297153,20705.0,20703.0,0.61533337]
[1673758521224,0.43274488,20705.0,20703.0,0.61533337]
[1673758521479,0.43274488,20705.0,20704.0,0.54609792]
[1673758521742,0.43274488,20705.0,20704.0,0.57094277]
[1673758521995,0.43274488,20705.0,20704.0,0.62479792]
[1673758522268,0.00432975,20706.0,20704.0,2.0738986]
[1673758522522,0.00432975,20706.0,20705.0,0.0793]
[1673758522789,0.00432975,20706.0,20705.0,1.18999435]
[1673758523048,0.00432975,20706.0,20705.0,0.562275]
[1673758523817,0.00432975,20706.0,20705.0,1.2009614]
[1673758524326,0.00432975,20706.0,20705.0,1.2169614]
[1673758528327,0.00425135,20706.0,20705.0,1.2169614]
[1673758528581,0.00425135,20706.0,20705.0,0.578275]
[1673758528856,0.00425135,20706.0,20705.0,1.11057824]
[1673758529360,0.00425135,20706.0,20705.0,0.578275]
[1673758529606,0.00425135,20706.0,20705.0,1.10044307]
[1673758529847,0.00425135,20706.0,20705.0,0.498975]
[1673758531129,0.00425135,20706.0,20705.0,1.18926925]
[1673758531636,0.00425135,20706.0,20705.0,1.04462928]
[1673758532177,0.00425135,20706.0,20705.0,1.90957858]
[1673758533459,0.00425135,20706.0,20705.0,1.27920941]
[1673758533727,0.00425135,20706.0,20705.0,0.94361497]
[1673758534720,0.00425135,20706.0,20705.0,0.798975]
[1673758534996,0.00425135,20706.0,20705.0,0.94361497]
[1673758535735,0.00425135,20706.0,20705.0,1.48991497]
[1673758535988,0.00425135,20706.0,20705.0,1.424575]
[1673758536301,0.00425135,20706.0,20705.0,1.56921497]
[1673758536756,0.00425135,20706.0,20705.0,1.424575]
[1673758537256,0.00425135,20706.0,20705.0,1.56921497]
[1673758537532,0.00425135,20706.0,20705.0,1.424575]
[1673758537776,0.00425135,20706.0,20705.0,1.56921497]
[1673758537992,0.0045111,20708.0,20706.0,0.10006791]
[1673758538277,0.0045111,20708.0,20707.0,1.045156]
[1673758539069,0.0045111,20708.0,20707.0,1.60128682]
[1673758539322,0.0045111,20708.0,20707.0,1.045156]
[1673758539590,0.0045111,20708.0,20707.0,1.352156]
[1673758540415,0.0045111,20708.0,20707.0,1.345156]
[1673758540665,0.0045111,20708.0,20707.0,1.361156]
[1673758540921,0.0045111,20708.0,20707.0,1.345156]
[1673758541176,0.0045111,20708.0,20707.0,1.87101952]
[1673758541471,0.0045111,20708.0,20707.0,1.62835436]
[1673758541726,0.0045111,20708.0,20707.0,1.76435436]
[1673758541989,0.0045111,20708.0,20707.0,1.78114458]
[1673758542240,0.0045111,20708.0,20707.0,1.345156]
[1673758542540,0.0045111,20708.0,20707.0,1.74498039]
[1673758542803,0.0045111,20708.0,20707.0,1.64498057]
[1673758543060,0.0045111,20708.0,20707.0,1.78962054]
[1673758543549,0.0045111,20708.0,20707.0,1.77998057]
[1673758544143,0.0045111,20708.0,20707.0,1.92462054]
[1673758545624,0.0045111,20708.0,20707.0,2.89041601]
[1673758546897,0.0045111,20708.0,20707.0,3.4656546]
[1673758547152,0.0045111,20708.0,20707.0,3.32161592]
[1673758547415,0.0045111,20708.0,20707.0,3.46565502]
[1673758547650,0.0045111,20708.0,20707.0,3.46627675]
[1673758548465,0.0035333,20710.0,20708.0,0.1]
[1673758548734,0.0035333,20710.0,20709.0,1.527643]
[1673758548992,0.0035333,20710.0,20709.0,2.056543]
[1673758549210,0.0035333,20710.0,20709.0,2.356543]
[1673758550793,0.0035333,20710.0,20709.0,3.03162887]
[1673758551043,0.0035333,20710.0,20709.0,2.493543]
[1673758551296,0.0035333,20710.0,20709.0,3.06559082]
[1673758552314,0.19425925,20710.0,20709.0,0.619881]
[1673758552584,0.0035333,20710.0,20709.0,0.137]
[1673758560521,0.0035333,20710.0,20709.0,0.77328243]
[1673758561542,0.0035333,20710.0,20709.0,0.77305343]
[1673758562037,0.0035333,20710.0,20709.0,0.136771]
[1673758562810,0.38495779,20710.0,20709.0,0.136771]
[1673758563065,0.86781579,20710.0,20709.0,0.136771]
[1673758567100,0.0035333,20710.0,20709.0,0.136771]
[1673758568411,0.0035333,20710.0,20709.0,0.60835203]
[1673758570130,0.0035333,20710.0,20709.0,1.57420478]
[1673758570381,0.0035333,20710.0,20709.0,1.7182348]
[1673758572617,0.0035333,20710.0,20709.0,0.60835203]
[1673758577603,0.0986033,20710.0,20709.0,0.60835203]
[1673758577863,0.94397518,20710.0,20709.0,0.136771]
[1673758578123,1.40946047,20710.0,20709.0,0.136771]
[1673758578637,1.24769434,20710.0,20709.0,0.136771]
[1673758578894,2.29596761,20710.0,20709.0,0.136771]
[1673758579162,1.48375555,20710.0,20709.0,0.136771]
[1673758579428,0.0793,20709.0,20706.0,0.53665882]
[1673758579673,1.259422,20708.0,20706.0,0.53665882]
[1673758579945,0.321144,20707.0,20706.0,0.53665882]
[1673758580193,0.482928,20707.0,20706.0,0.53665882]
[1673758580445,0.482928,20707.0,20706.0,6.791e-05]
[1673758581438,0.89220222,20707.0,20706.0,6.791e-05]
[1673758581950,0.89220222,20707.0,20706.0,4.7e-07]
[1673758581951,1.34931622,20707.0,20706.0,4.7e-07]
[1673758582212,1.26696043,20707.0,20706.0,4.7e-07]
[1673758582462,2.14926252,20707.0,20706.0,4.7e-07]
[1673758582723,2.18510399,20707.0,20706.0,4.7e-07]
[1673758582987,1.88510399,20707.0,20706.0,4.7e-07]
[1673758583236,1.56990687,20707.0,20706.0,4.7e-07]
[1673758583490,1.42574369,20707.0,20706.0,4.7e-07]
[1673758584237,1.42074369,20707.0,20706.0,4.7e-07]
[1673758584743,1.42974369,20707.0,20706.0,0.00700047]
[1673758586764,1.76946073,20707.0,20706.0,0.09508047]
[1673758587021,0.330144,20707.0,20706.0,0.09508047]
[1673758587279,0.009,20707.0,20706.0,0.68451992]
[1673758588028,0.40669963,20709.0,20706.0,0.67751992]
[1673758588293,0.007,20707.0,20706.0,0.68351992]
[1673758588528,0.40669963,20709.0,20706.0,0.08808047]
[1673758588775,0.007,20707.0,20706.0,0.09408047]
[1673758588992,0.40669963,20709.0,20706.0,0.08808047]
[1673758589211,0.41369963,20709.0,20706.0,0.09408047]
[1673758589458,0.40669963,20709.0,20706.0,0.08808047]
[1673758589679,0.40669963,20709.0,20707.0,0.63357825]
[1673758591062,0.008,20709.0,20707.0,0.63357825]
[1673758591328,0.49950453,20710.0,20707.0,0.63357825]
[1673758591578,0.008,20709.0,20707.0,0.64057825]
[1673758591846,0.49950453,20710.0,20707.0,0.63357825]
[1673758592097,0.008,20709.0,20707.0,0.63357825]
[1673758592596,0.49950453,20710.0,20707.0,0.63357825]
[1673758592860,0.008,20709.0,20707.0,0.63357825]
[1673758593881,0.39694851,20709.0,20707.0,0.63357825]
[1673758594648,0.40494851,20709.0,20707.0,0.63357825]
[1673758602771,0.88783251,20709.0,20707.0,0.63357825]
[1673758603550,0.45755707,20708.0,20706.0,4.7e-07]
[1673758603806,0.321144,20707.0,20706.0,4.7e-07]
[1673758604276,0.94047707,20708.0,20706.0,4.7e-07]
[1673758604814,0.321144,20707.0,20706.0,0.04600047]
[1673758605065,0.804072,20707.0,20706.0,4.7e-07]
[1673758605613,0.482928,20707.0,20706.0,4.7e-07]
[1673758606379,0.804072,20707.0,20706.0,0.04600047]
[1673758608610,0.482928,20707.0,20706.0,0.04600047]
[1673758609372,1.13694028,20707.0,20706.0,0.04600047]
[1673758610163,0.81579628,20707.0,20706.0,0.04600047]
[1673758613966,1.13694028,20707.0,20706.0,0.04600047]
[1673758615237,1.28110346,20707.0,20706.0,0.04600047]
[1673758615487,1.33777346,20707.0,20706.0,0.04591313]
[1673758615736,1.55403127,20707.0,20706.0,0.04591313]
[1673758616000,1.63333127,20707.0,20706.0,0.04591313]
[1673758616267,3.45111939,20707.0,20706.0,0.04591313]
[1673758616525,2.9717644,20707.0,20706.0,0.04591313]
[1673758617047,2.86441464,20707.0,20700.0,0.01323455]
[1673758617311,0.0793,20701.0,20700.0,0.01323455]
[1673758617575,1.07423795,20701.0,20700.0,0.01323455]
[1673758617882,0.75309395,20701.0,20700.0,0.01323455]
[1673758618086,0.562368,20701.0,20700.0,0.01323455]
[1673758619126,0.572368,20701.0,20700.0,0.01323455]
[1673758619879,0.562368,20701.0,20700.0,0.01342455]
[1673758620132,0.572368,20701.0,20700.0,0.01342455]
[1673758620894,0.572368,20701.0,20700.0,0.01321681]
[1673758621396,0.572368,20701.0,20700.0,0.62720831]
[1673758622350,0.572368,20701.0,20700.0,0.01321681]
[1673758622609,0.893512,20701.0,20700.0,0.01321681]
[1673758623132,0.572368,20701.0,20700.0,0.01321681]
[1673758624099,0.571868,20701.0,20700.0,0.01321681]
[1673758624596,0.0888,20701.0,20700.0,0.01321681]
[1673758626348,0.409944,20701.0,20700.0,0.01321681]
[1673758626596,0.0888,20701.0,20700.0,0.01321681]
[1673758628094,0.571868,20701.0,20700.0,0.01321681]
[1673758629366,0.493068,20701.0,20700.0,0.01321681]
[1673758632920,0.90307277,20701.0,20700.0,0.01321681]
[1673758634183,0.493068,20701.0,20700.0,0.72705284]
[1673758634706,0.01,20701.0,20700.0,0.72705284]
[1673758634946,0.01,20701.0,20700.0,0.72686284]
[1673758640695,0.01,20701.0,20700.0,0.63878284]
[1673758641407,0.01,20701.0,20700.0,0.01302681]
[1673758641658,0.73948331,20701.0,20700.0,0.01302681]
[1673758642425,0.41833931,20701.0,20700.0,0.01302681]
[1673758643431,0.90140731,20701.0,20700.0,0.01302681]
[1673758644455,1.22255131,20701.0,20700.0,0.01302681]
[1673758645281,1.07706491,20701.0,20700.0,0.01302681]
[1673758645546,1.78441409,20701.0,20700.0,0.01302681]
[1673758645827,2.52429187,20701.0,20700.0,0.01296616]
[1673758646344,2.52400747,20701.0,20700.0,0.01296616]
[1673758646867,2.3077208,20701.0,20700.0,0.01296616]
[1673758647401,2.51400747,20701.0,20700.0,0.01296616]
[1673758647911,2.93061003,20701.0,20700.0,0.01796616]
[1673758648183,2.98728003,20701.0,20700.0,0.01796616]
[1673758648723,2.98721686,20701.0,20700.0,0.01796616]
[1673758648977,3.13169237,20701.0,20700.0,0.01796616]
[1673758649233,0.09119197,20699.0,20698.0,0.0143108]
[1673758649530,2.72565106,20699.0,20698.0,0.0143108]
[1673758649825,3.24822489,20699.0,20698.0,0.0143108]
[1673758650076,2.32055066,20699.0,20698.0,0.0143108]
[1673758650881,2.68837742,20699.0,20698.0,0.0143108]
[1673758651338,2.71937742,20699.0,20698.0,0.0193108]
[1673758655197,2.97750106,20699.0,20698.0,0.0193108]
[1673758655457,3.12135219,20699.0,20698.0,0.0193108]
[1673758655711,3.01117848,20699.0,20698.0,0.0193108]
[1673758655982,2.71117848,20699.0,20698.0,0.0193108]
[1673758656303,3.05795342,20699.0,20698.0,0.0193108]
[1673758657032,3.05250512,20699.0,20698.0,0.0193108]
[1673758657566,2.83672843,20699.0,20698.0,0.0193108]
[1673758657824,3.04400512,20699.0,20698.0,0.0193108]
[1673758658065,3.10067512,20699.0,20698.0,0.0193108]
[1673758658316,2.88489843,20699.0,20698.0,0.0193108]
[1673758661329,3.10067512,20699.0,20698.0,0.0193108]
[1673758661595,2.88489843,20699.0,20698.0,0.0193108]
[1673758662119,2.79848843,20699.0,20698.0,0.0193108]
[1673758662391,0.51889697,20699.0,20698.0,0.51174544]
[1673758662933,0.03578197,20699.0,20698.0,0.51174544]
[1673758667450,0.03505114,20699.0,20698.0,0.51174544]
[1673758668444,0.00405114,20699.0,20698.0,0.50674544]
[1673758668940,0.03205114,20699.0,20698.0,0.51174544]
[1673758670212,0.00405114,20699.0,20698.0,0.50674544]
[1673758670454,0.01705114,20699.0,20698.0,0.50674544]
[1673758672265,0.01705114,20699.0,20698.0,0.65603645]
[1673758672545,0.01705114,20699.0,20698.0,0.63565356]
[1673758672784,0.01705114,20699.0,20698.0,0.0937108]
[1673758673034,0.01705114,20699.0,20698.0,0.66359469]
[1673758674609,0.01705114,20699.0,20698.0,0.0937108]
[1673758674862,0.01705114,20699.0,20698.0,0.76239705]
[1673758680372,0.01705114,20699.0,20698.0,0.0937108]
[1673758680887,0.01705114,20699.0,20698.0,0.75281819]
[1673758681986,0.01705114,20699.0,20698.0,0.89684821]
[1673758682712,0.01705114,20699.0,20698.0,0.75281819]
[1673758683730,0.20777709,20699.0,20698.0,0.0143108]
[1673758683984,0.89906956,20699.0,20698.0,0.0143108]
[1673758686729,0.50016614,20699.0,20698.0,0.67448116]
[1673758687786,0.01705114,20699.0,20698.0,0.67448116]
[1673758693267,0.01705114,20699.0,20698.0,1.12468762]
[1673758693527,0.01693838,20699.0,20698.0,1.92431962]
[1673758694034,0.01693838,20699.0,20698.0,2.26811573]
[1673758694287,0.01693838,20699.0,20698.0,1.90969528]
[1673758694794,0.01693838,20699.0,20698.0,2.33900923]
[1673758695055,0.01693838,20699.0,20698.0,2.62828711]
[1673758695318,0.01693838,20699.0,20698.0,2.41132342]
[1673758695581,0.01693838,20699.0,20698.0,2.77292204]
[1673758695799,0.01693838,20699.0,20698.0,2.41132342]
[1673758696110,0.01693838,20699.0,20698.0,2.62821544]
[1673758696974,0.01693838,20699.0,20698.0,2.77292204]
[1673758699659,0.01693838,20699.0,20698.0,2.48364416]
[1673758699908,0.01693838,20699.0,20698.0,2.68514594]
[1673758700163,0.01693838,20699.0,20698.0,3.62038786]
[1673758700416,0.01693838,20699.0,20698.0,5.06972126]
[1673758700673,0.00393838,20699.0,20698.0,3.62038786]
[1673758700921,0.00693838,20699.0,20698.0,3.68438786]
[1673758701184,0.00393838,20699.0,20698.0,3.62038786]
[1673758701441,0.00693838,20699.0,20698.0,3.68438786]
[1673758701687,0.75260248,20707.0,20698.0,3.68438786]
[1673758701688,0.34812043,20707.0,20698.0,3.68438786]
[1673758701958,0.53884638,20707.0,20702.0,0.22392962]
[1673758702210,0.34812043,20707.0,20703.0,0.99086885]
[1673758702462,0.34812043,20707.0,20704.0,0.02484485]
[1673758702710,0.34812043,20707.0,20704.0,0.50784185]
[1673758702993,0.35012043,20707.0,20704.0,0.482997]
[1673758703237,0.34812043,20707.0,20705.0,0.58455291]
[1673758703455,0.35012043,20707.0,20705.0,0.58455291]
[1673758703703,0.34812043,20707.0,20705.0,0.58455291]
[1673758703954,0.002,20707.0,20705.0,0.58455291]
[1673758704455,0.013,20707.0,20705.0,0.58455291]
[1673758704961,0.013,20707.0,20705.0,1.06752491]
[1673758705742,0.013,20707.0,20705.0,0.562172]
[1673758705986,0.013,20707.0,20706.0,0.61289623]
[1673758706240,0.013,20707.0,20706.0,1.09584723]
[1673758706491,0.013,20707.0,20706.0,0.782951]
[1673758706995,0.00663873,20708.0,20706.0,1.15855109]
[1673758707244,0.026,20707.0,20706.0,0.787951]
[1673758707497,0.026,20707.0,20706.0,0.97348226]
[1673758708563,0.00663873,20708.0,20706.0,0.48553126]
[1673758709317,0.026,20707.0,20706.0,0.48553126]
[1673758709591,0.00663873,20708.0,20706.0,0.48553126]
[1673758709852,0.03263873,20708.0,20706.0,0.49053126]
[1673758710842,0.03263873,20708.0,20707.0,0.48388462]
[1673758711811,0.00663873,20708.0,20707.0,0.48388462]
[1673758712318,0.03163873,20708.0,20707.0,0.48988462]
[1673758715944,0.03163873,20708.0,20707.0,0.006]
[1673758716960,0.03163873,20708.0,20707.0,0.67077793]
[1673758717997,0.03163873,20708.0,20707.0,0.6146768]
[1673758718268,0.03163873,20708.0,20707.0,0.006]
[1673758718495,0.03163873,20708.0,20707.0,0.67469105]
[1673758718770,0.03163873,20708.0,20707.0,1.15761905]
[1673758721570,0.03163873,20708.0,20707.0,0.67469105]
[1673758726012,0.03155131,20708.0,20707.0,0.67469105]
[1673758727266,0.03155131,20708.0,20707.0,0.006]
[1673758727550,0.03155131,20708.0,20707.0,0.61844703]
[1673758727807,0.03155131,20708.0,20707.0,0.91844703]
[1673758728060,0.03155131,20708.0,20707.0,0.61844703]
[1673758729821,0.03155131,20708.0,20707.0,1.10137503]
[1673758730089,0.03155131,20708.0,20707.0,1.40137503]
[1673758730339,0.03155131,20708.0,20707.0,1.10137503]
[1673758730598,0.03155131,20708.0,20707.0,0.488928]
[1673758730850,0.03155131,20708.0,20707.0,0.788928]
[1673758731140,0.03155131,20708.0,20707.0,1.39656762]
[1673758731833,0.03155131,20708.0,20707.0,1.09656762]
[1673758733098,0.03155131,20708.0,20707.0,2.06244583]
[1673758733360,0.03155131,20708.0,20707.0,2.36244583]
[1673758733621,0.03155131,20708.0,20707.0,2.30303272]
[1673758733879,0.03155131,20708.0,20707.0,1.33715451]
[1673758734133,0.03155131,20708.0,20707.0,2.30302756]
[1673758734382,0.03155131,20708.0,20707.0,1.89933067]
[1673758734629,0.03155131,20708.0,20707.0,1.97863067]
[1673758735143,0.03155131,20708.0,20707.0,2.47986635]
[1673758735370,0.03155131,20708.0,20707.0,1.97863067]
[1673758735620,0.03155131,20708.0,20707.0,2.50598588]
[1673758736393,0.03155131,20708.0,20707.0,1.97863067]
[1673758736649,0.03155131,20708.0,20707.0,2.79278141]
[1673758736867,0.03155131,20708.0,20707.0,2.5490058]
[1673758737121,0.03155131,20708.0,20707.0,3.0561924]
[1673758737383,0.03155131,20708.0,20707.0,2.7026117]
[1673758737890,0.03155131,20708.0,20707.0,2.48581727]
[1673758738146,0.03155131,20708.0,20707.0,3.05650057]
[1673758738392,0.03155131,20708.0,20707.0,2.75650057]
[1673758738655,0.03155131,20708.0,20707.0,2.75650069]
[1673758738897,0.03155131,20708.0,20707.0,2.10651727]
[1673758740400,0.03155131,20708.0,20707.0,2.3233117]
[1673758740672,0.03155131,20708.0,20707.0,2.83280016]
[1673758740929,0.03155131,20708.0,20707.0,2.67733258]
[1673758741934,0.03155131,20708.0,20707.0,2.97733238]
[1673758742424,0.03155131,20708.0,20707.0,3.12185939]
[1673758742922,0.03155131,20708.0,20707.0,2.53280016]
[1673758743172,0.03155131,20708.0,20707.0,2.67737921]
[1673758744237,0.03155131,20708.0,20707.0,2.82185939]
[1673758747016,0.03155131,20708.0,20707.0,2.04987216]
[1673758747262,0.03155131,20708.0,20707.0,2.19453299]
[1673758751298,0.03155131,20708.0,20707.0,2.04987216]
[1673758751565,0.03155131,20708.0,20707.0,2.1945539]
[1673758751820,0.03155131,20708.0,20707.0,0.006]
[1673758751821,0.98609987,20708.0,20707.0,0.006]
[1673758752066,0.82433887,20708.0,20707.0,0.006]
[1673758752314,0.50319487,20708.0,20707.0,0.006]
[1673758752571,0.98609987,20708.0,20707.0,0.006]
[1673758753078,1.30724387,20708.0,20707.0,0.0058997]
[1673758753850,0.98609987,20708.0,20707.0,0.0058997]
[1673758754869,1.30724387,20708.0,20707.0,0.0058997]
[1673758755379,0.98609987,20708.0,20707.0,0.0058997]
[1673758755621,1.30724387,20708.0,20707.0,0.0058997]
[1673758756359,0.91490031,20708.0,20707.0,0.0058997]
[1673758756615,1.56698525,20708.0,20707.0,0.0058997]
[1673758756879,1.41905922,20708.0,20707.0,0.0058997]
[1673758757382,1.130677,20708.0,20707.0,0.0058997]
[1673758757923,1.41905922,20708.0,20707.0,0.0058997]
[1673758758172,1.27486815,20708.0,20707.0,0.0058997]
[1673758759699,1.130677,20708.0,20707.0,0.0058997]
[1673758760214,1.27481461,20708.0,20707.0,0.0058997]
[1673758760480,1.05903792,20708.0,20707.0,0.0058997]
[1673758764257,0.91490031,20708.0,20707.0,0.0058997]
[1673758764513,1.28148165,20708.0,20707.0,0.0058997]
[1673758764767,0.91490031,20708.0,20707.0,0.0058997]
[1673758765031,1.05903792,20708.0,20707.0,0.0058997]
[1673758766041,0.91490031,20708.0,20707.0,0.0058997]
[1673758767095,1.05903792,20708.0,20707.0,0.0058997]
[1673758767366,1.01490031,20708.0,20707.0,0.0058997]
[1673758768398,1.31926842,20708.0,20707.0,0.0058997]
[1673758768647,1.3815563,20708.0,20707.0,0.0058997]
[1673758769129,0.97157031,20708.0,20707.0,0.0058997]
[1673758769899,1.33363053,20708.0,20707.0,0.0058997]
[1673758771516,0.97157031,20708.0,20707.0,0.0058997]
[1673758772292,0.91490031,20708.0,20707.0,0.0058997]
[1673758772543,0.97157031,20708.0,20707.0,0.0058997]
[1673758773161,1.31376629,20708.0,20707.0,0.0058997]
[1673758773322,0.97157031,20708.0,20707.0,0.0058997]
[1673758773575,1.11570792,20708.0,20707.0,0.0058997]
[1673758773835,0.97157031,20708.0,20707.0,0.0058997]
[1673758774094,1.11570792,20708.0,20707.0,0.0058997]
[1673758775121,1.11570792,20708.0,20707.0,0.00580061]
[1673758775122,1.43148461,20708.0,20707.0,0.00580061]
[1673758775379,1.45444409,20708.0,20707.0,0.00580061]
[1673758775657,1.11570792,20708.0,20707.0,0.00580061]
[1673758775908,1.52222753,20708.0,20707.0,0.00580061]
[1673758776167,1.11570792,20708.0,20707.0,0.00580061]
[1673758776442,1.51453902,20708.0,20707.0,0.00580061]
[1673758776694,1.11570792,20708.0,20707.0,0.00580061]
[1673758777015,1.53391155,20708.0,20707.0,0.00580061]
[1673758780630,1.43148461,20708.0,20707.0,0.00580061]
[1673758780959,1.287347,20708.0,20707.0,0.00580061]
[1673758781424,1.33133547,20708.0,20707.0,0.00580061]
[1673758781667,1.65684794,20708.0,20707.0,0.00580061]
[1673758781920,1.33133547,20708.0,20707.0,0.00580061]
[1673758782418,1.187347,20708.0,20707.0,0.00580061]
[1673758782670,1.33133704,20708.0,20707.0,0.00580061]
[1673758782925,1.80008922,20708.0,20707.0,0.00580061]
[1673758783192,1.47572922,20708.0,20707.0,0.00580061]
[1673758783520,1.60205941,20708.0,20707.0,0.00580061]
[1673758783702,1.187347,20708.0,20707.0,0.00580061]
[1673758783970,1.55172051,20708.0,20707.0,0.00580061]
[1673758784223,1.47997202,20708.0,20707.0,0.00580061]
[1673758787060,1.69574871,20708.0,20707.0,0.00580061]
[1673758788289,1.55172051,20708.0,20707.0,0.00580061]
[1673758789787,1.84010273,20708.0,20707.0,0.00580061]
[1673758790037,1.9791101,20708.0,20707.0,0.00580061]
[1673758790307,2.32728406,20708.0,20707.0,0.00580061]
[1673758791303,1.82449418,20708.0,20707.0,0.00580061]
[1673758791549,2.32729941,20708.0,20707.0,0.00580061]
[1673758791804,1.96682163,20708.0,20707.0,0.00580061]
[1673758792066,2.32729941,20708.0,20707.0,0.00580061]
[1673758792532,1.96682163,20708.0,20707.0,0.00580061]
[1673758792825,2.32729941,20708.0,20707.0,0.00580061]
[1673758793079,1.60812649,20708.0,20707.0,0.00580061]
[1673758793344,2.32713532,20708.0,20707.0,0.00580061]
[1673758793587,1.96165754,20708.0,20707.0,0.00580061]
[1673758793839,1.60312649,20708.0,20707.0,0.00580061]
[1673758794087,2.00107992,20708.0,20707.0,0.00580061]
[1673758794768,2.32222392,20708.0,20707.0,0.00580061]
[1673758795994,2.0338417,20708.0,20707.0,0.00580061]
[1673758796437,1.7126977,20708.0,20707.0,0.00580061]
[1673758796966,2.0338417,20708.0,20707.0,0.00580061]
[1673758797490,1.7126977,20708.0,20707.0,0.00580061]
[1673758798237,2.00138862,20708.0,20707.0,0.00580061]
[1673758799011,2.32253262,20708.0,20707.0,0.00580061]
[1673758799737,2.32253653,20708.0,20707.0,0.00580061]
[1673758800015,2.00139253,20708.0,20707.0,0.00580061]
[1673758800969,2.00126388,20708.0,20707.0,0.00580061]
[1673758801272,2.03372225,20708.0,20707.0,0.00508028]
[1673758801501,2.03348725,20708.0,20707.0,0.00508028]
[1673758801740,1.71234325,20708.0,20707.0,0.00508028]
[1673758802487,2.03348725,20708.0,20707.0,0.00508028]
[1673758802734,2.03290225,20708.0,20707.0,0.00508028]
[1673758803226,1.71175825,20708.0,20707.0,0.00508028]
[1673758804011,2.00041639,20708.0,20707.0,0.00508028]
[1673758804521,1.71175825,20708.0,20707.0,0.00508028]
[1673758805268,2.00046268,20708.0,20707.0,0.00508028]
[1673758805786,1.71175825,20708.0,20707.0,0.00508028]